[Event "Titled Tuesday Blitz June 14 Late 2022"]
[White "Ladan, Nicholas"]
[Black "Romero Ruscalleda, Josep"]
[WhiteFideId "30918855"]
[BlackFideId "2231859"]
[WhiteElo "2167"]
[BlackElo "2358"]
[Result "1/2-1/2"]
[Round "11"]
[TimeControl "180+1"]
[Date "2022.06.15"]
[WhiteClock "0:00:06"]
[BlackClock "0:00:31"]

1. d4 {[%clk 0:03:00]}  g6 {[%clk 0:03:00]} 2. e4 {[%clk 0:02:57]}  Bg7 {[%clk 0:03:01]} 3. h4 {[%clk 0:02:52]}  h5 {[%clk 0:02:59]} 4. Nf3 {[%clk 0:02:50]}  d6 {[%clk 0:02:59]} 5. Bc4 {[%clk 0:02:50]}  Nf6 {[%clk 0:02:59]} 6. Nc3 {[%clk 0:02:46]}  Bg4 {[%clk 0:02:57]} 7. Be3 {[%clk 0:02:41]}  Nc6 {[%clk 0:02:55]} 8. a3 {[%clk 0:02:37]}  e5 {[%clk 0:02:54]} 9. Qd2 {[%clk 0:02:33]}  Bxf3 {[%clk 0:02:43]} 10. gxf3 {[%clk 0:02:33]}  exd4 {[%clk 0:02:43]} 11. Bxd4 {[%clk 0:02:34]}  Nxd4 {[%clk 0:02:43]} 12. Qxd4 {[%clk 0:02:35]}  O-O {[%clk 0:02:36]} 13. Qd2 {[%clk 0:02:30]}  Kh7 {[%clk 0:02:31]} 14. O-O-O {[%clk 0:02:28]}  a6 {[%clk 0:02:20]} 15. Kb1 {[%clk 0:02:25]}  b5 {[%clk 0:02:19]} 16. Ba2 {[%clk 0:02:23]}  Rb8 {[%clk 0:02:18]} 17. Nd5 {[%clk 0:02:10]}  Nxd5 {[%clk 0:02:12]} 18. Qxd5 {[%clk 0:02:11]}  Qf6 {[%clk 0:02:12]} 19. c3 {[%clk 0:02:02]}  Qxf3 {[%clk 0:02:11]} 20. Rhg1 {[%clk 0:01:37]}  Qf6 {[%clk 0:02:08]} 21. Rdf1 {[%clk 0:01:34]}  b4 {[%clk 0:02:08]} 22. axb4 {[%clk 0:01:30]}  Rxb4 {[%clk 0:02:07]} 23. e5 {[%clk 0:01:15]}  Qf5+ {[%clk 0:02:07]} 24. Ka1 {[%clk 0:01:15]}  Rb5 {[%clk 0:01:59]} 25. Qc6 {[%clk 0:01:02]}  Qc2 {[%clk 0:01:38]} 26. Rb1 {[%clk 0:00:49]}  Bxe5 {[%clk 0:01:37]} 27. Qxc7 {[%clk 0:00:42]}  Rxb2 {[%clk 0:01:28]} 28. Rxb2 {[%clk 0:00:31]}  Bxc3 {[%clk 0:01:28]} 29. Qb7 {[%clk 0:00:29]}  Qxf2 {[%clk 0:01:24]} 30. Rc1 {[%clk 0:00:26]}  Bxb2+ {[%clk 0:01:22]} 31. Qxb2 {[%clk 0:00:25]}  Qxh4 {[%clk 0:01:22]} 32. Rd1 {[%clk 0:00:22]}  Qf4 {[%clk 0:01:20]} 33. Qc3 {[%clk 0:00:14]}  Qe5 {[%clk 0:01:15]} 34. Kb2 {[%clk 0:00:11]}  h4 {[%clk 0:01:06]} 35. Rd4 {[%clk 0:00:09]}  Rb8+ {[%clk 0:01:04]} 36. Bb3 {[%clk 0:00:08]}  Qe2+ {[%clk 0:01:03]} 37. Ka3 {[%clk 0:00:07]}  Qf2 {[%clk 0:00:55]} 38. Rd2 {[%clk 0:00:03]}  Qc5+ {[%clk 0:00:54]} 39. Qxc5 {[%clk 0:00:03]}  dxc5 {[%clk 0:00:54]} 40. Bxf7 {[%clk 0:00:02]}  g5 {[%clk 0:00:52]} 41. Be6 {[%clk 0:00:02]}  Rb4 {[%clk 0:00:50]} 42. Rd5 {[%clk 0:00:02]}  Rb5 {[%clk 0:00:50]} 43. Rxg5 {[%clk 0:00:02]}  Kh6 {[%clk 0:00:50]} 44. Rg4 {[%clk 0:00:03]}  Kh5 {[%clk 0:00:50]} 45. Rg8 {[%clk 0:00:03]}  Rb4 {[%clk 0:00:47]} 46. Bd7 {[%clk 0:00:03]}  Rd4 {[%clk 0:00:46]} 47. Bc8 {[%clk 0:00:03]}  c4 {[%clk 0:00:44]} 48. Kb4 {[%clk 0:00:03]}  a5+ {[%clk 0:00:45]} 49. Kxa5 {[%clk 0:00:03]}  c3 {[%clk 0:00:45]} 50. Bf5 {[%clk 0:00:03]}  Rd5+ {[%clk 0:00:44]} 51. Kb4 {[%clk 0:00:03]}  Rxf5 {[%clk 0:00:44]} 52. Kxc3 {[%clk 0:00:04]}  Rg5 {[%clk 0:00:43]} 53. Rh8+ {[%clk 0:00:03]}  Kg4 {[%clk 0:00:44]} 54. Kd3 {[%clk 0:00:04]}  Re5 {[%clk 0:00:44]} 55. Rg8+ {[%clk 0:00:03]}  Kh3 {[%clk 0:00:44]} 56. Kd4 {[%clk 0:00:02]}  Re7 {[%clk 0:00:43]} 57. Kd3 {[%clk 0:00:03]}  Kh2 {[%clk 0:00:43]} 58. Kd2 {[%clk 0:00:04]}  h3 {[%clk 0:00:43]} 59. Kd3 {[%clk 0:00:04]}  Kh1 {[%clk 0:00:43]} 60. Kd2 {[%clk 0:00:05]}  Ra7 {[%clk 0:00:42]} 61. Kd1 {[%clk 0:00:05]}  Ra2 {[%clk 0:00:38]} 62. Ke1 {[%clk 0:00:06]}  Rg2 {[%clk 0:00:38]} 63. Rh8 {[%clk 0:00:06]}  Kh2 {[%clk 0:00:38]} 64. Kf1 {[%clk 0:00:07]}  Rg7 {[%clk 0:00:38]} 65. Kf2 {[%clk 0:00:06]}  Rf7+ {[%clk 0:00:39]} 66. Ke2 {[%clk 0:00:06]}  Rf4 {[%clk 0:00:38]} 67. Rg8 {[%clk 0:00:07]}  Ra4 {[%clk 0:00:36]} 68. Kf2 {[%clk 0:00:07]}  Ra3 {[%clk 0:00:36]} 69. Kf1 {[%clk 0:00:08]}  Ra2 {[%clk 0:00:36]} 70. Rg7 {[%clk 0:00:07]}  Kh1 {[%clk 0:00:35]} 71. Rg8 {[%clk 0:00:06]}  Ra1+ {[%clk 0:00:34]} 72. Kf2 {[%clk 0:00:06]}  Ra2+ {[%clk 0:00:34]} 73. Kf1 {[%clk 0:00:06]}  Rg2 {[%clk 0:00:33]} 74. Rh8 {[%clk 0:00:06]}  Rg3 {[%clk 0:00:34]} 75. Kf2 {[%clk 0:00:05]}  Kh2 {[%clk 0:00:34]} 76. Rf8 {[%clk 0:00:04]}  Ra3 {[%clk 0:00:34]} 77. Rg8 {[%clk 0:00:04]}  Ra2+ {[%clk 0:00:33]} 78. Kf1 {[%clk 0:00:05]}  Kh1 {[%clk 0:00:32]} 79. Rg7 {[%clk 0:00:05]}  h2 {[%clk 0:00:32]} 80. Rg8 {[%clk 0:00:06]}  Ra1+ {[%clk 0:00:32]} 81. Kf2 {[%clk 0:00:06]}  Rg1 {[%clk 0:00:32]} 82. Rh8 {[%clk 0:00:05]}  Rg2+ {[%clk 0:00:32]} 83. Kf1 {[%clk 0:00:05]}  Ra2 {[%clk 0:00:31]} 84. Rg8 {[%clk 0:00:04]}  Ra1+ {[%clk 0:00:31]} 85. Kf2 {[%clk 0:00:05]}  Ra2+ {[%clk 0:00:31]} 86. Kf1 {[%clk 0:00:06]} 1/2-1/2


[Site "https://www.chess.com"]

[Event "Titled Tuesday Blitz June 14 Late 2022"]
[White "Mammadova, Gulnar"]
[Black "Toncheva, Nadya"]
[WhiteFideId "13403508"]
[BlackFideId "2924056"]
[WhiteElo "2255"]
[BlackElo "1888"]
[Result "0-1"]
[Round "11"]
[TimeControl "180+1"]
[Date "2022.06.14"]
[WhiteClock "0:01:14"]
[BlackClock "0:00:08"]

1. e4 {[%clk 0:03:00]}  c5 {[%clk 0:02:59]} 2. Nf3 {[%clk 0:03:00]}  d6 {[%clk 0:03:00]} 3. Bb5+ {[%clk 0:02:59]}  Nc6 {[%clk 0:03:00]} 4. d4 {[%clk 0:02:58]}  cxd4 {[%clk 0:02:59]} 5. Qxd4 {[%clk 0:02:59]}  Bd7 {[%clk 0:02:56]} 6. Bxc6 {[%clk 0:02:59]}  Bxc6 {[%clk 0:02:55]} 7. Nc3 {[%clk 0:02:59]}  Nf6 {[%clk 0:02:55]} 8. Bg5 {[%clk 0:02:58]}  e6 {[%clk 0:02:48]} 9. O-O-O {[%clk 0:02:57]}  Be7 {[%clk 0:02:47]} 10. Qd3 {[%clk 0:02:57]}  Qa5 {[%clk 0:02:43]} 11. Bd2 {[%clk 0:02:56]}  Rc8 {[%clk 0:02:40]} 12. a3 {[%clk 0:02:56]}  Qc7 {[%clk 0:02:36]} 13. Rhe1 {[%clk 0:02:53]}  a6 {[%clk 0:02:34]} 14. h4 {[%clk 0:02:53]}  O-O {[%clk 0:02:26]} 15. Nd4 {[%clk 0:02:54]}  Rfd8 {[%clk 0:02:22]} 16. f3 {[%clk 0:02:50]}  e5 {[%clk 0:02:14]} 17. Nf5 {[%clk 0:02:49]}  d5 {[%clk 0:02:11]} 18. exd5 {[%clk 0:02:44]}  Nxd5 {[%clk 0:02:07]} 19. Qc4 {[%clk 0:02:43]}  Bf8 {[%clk 0:01:25]} 20. Bg5 {[%clk 0:02:23]}  f6 {[%clk 0:01:12]} 21. Bd2 {[%clk 0:02:14]}  Kh8 {[%clk 0:01:10]} 22. h5 {[%clk 0:02:12]}  b5 {[%clk 0:01:08]} 23. Qg4 {[%clk 0:02:10]}  Bd7 {[%clk 0:01:00]} 24. Qe4 {[%clk 0:02:02]}  Bxf5 {[%clk 0:00:55]} 25. Qxf5 {[%clk 0:02:01]}  Bxa3 {[%clk 0:00:55]} 26. h6 {[%clk 0:01:57]}  Nxc3 {[%clk 0:00:36]} 27. hxg7+ {[%clk 0:01:53]}  Kg8 {[%clk 0:00:32]} 28. Bxc3 {[%clk 0:01:31]}  Qxc3 {[%clk 0:00:20]} 29. Qe6+ {[%clk 0:01:28]}  Kxg7 {[%clk 0:00:15]} 30. Rd7+ {[%clk 0:01:21]}  Rxd7 {[%clk 0:00:12]} 31. Qxd7+ {[%clk 0:01:22]}  Kf8 {[%clk 0:00:07]} 32. Qd2 {[%clk 0:01:13]}  Bxb2+ {[%clk 0:00:07]} 33. Kd1 {[%clk 0:01:12]}  Qxd2+ {[%clk 0:00:07]} 34. Kxd2 {[%clk 0:01:13]}  Bc3+ {[%clk 0:00:08]} 35. Kd3 {[%clk 0:01:13]}  Bxe1 {[%clk 0:00:09]} 36. f4 {[%clk 0:01:14]}  exf4 {[%clk 0:00:08]} 0-1


[Site "https://www.chess.com"]

[Event "Titled Tuesday Blitz June 14 Late 2022"]
[White "Mekhitarian, Krikor Sevag"]
[Black "Jobava, Baadur"]
[WhiteFideId "2107660"]
[BlackFideId "13601520"]
[WhiteElo "2611"]
[BlackElo "2617"]
[Result "0-1"]
[Round "11"]
[TimeControl "180+1"]
[Date "2022.06.14"]
[WhiteClock "0:00:01"]
[BlackClock "0:00:21"]

1. d4 {[%clk 0:03:00]}  Nf6 {[%clk 0:02:56]} 2. Nf3 {[%clk 0:03:01]}  e6 {[%clk 0:02:54]} 3. g3 {[%clk 0:03:01]}  b5 {[%clk 0:02:54]} 4. Qd3 {[%clk 0:03:01]}  Bb7 {[%clk 0:02:51]} 5. Qxb5 {[%clk 0:02:55]}  Bxf3 {[%clk 0:02:51]} 6. exf3 {[%clk 0:02:55]}  Nc6 {[%clk 0:02:50]} 7. c3 {[%clk 0:02:49]}  Rb8 {[%clk 0:02:50]} 8. Qd3 {[%clk 0:02:43]}  d5 {[%clk 0:02:50]} 9. Bg2 {[%clk 0:02:40]}  h5 {[%clk 0:02:48]} 10. O-O {[%clk 0:02:29]}  h4 {[%clk 0:02:47]} 11. Re1 {[%clk 0:02:29]}  Bd6 {[%clk 0:02:42]} 12. Nd2 {[%clk 0:02:11]}  Ne7 {[%clk 0:02:39]} 13. b3 {[%clk 0:02:01]}  c5 {[%clk 0:02:32]} 14. dxc5 {[%clk 0:01:47]}  Bxc5 {[%clk 0:02:33]} 15. Nf1 {[%clk 0:01:47]}  Kf8 {[%clk 0:02:25]} 16. Be3 {[%clk 0:01:44]}  Qc7 {[%clk 0:02:21]} 17. c4 {[%clk 0:01:24]}  Bxe3 {[%clk 0:02:15]} 18. Nxe3 {[%clk 0:01:24]}  Rd8 {[%clk 0:02:07]} 19. cxd5 {[%clk 0:01:22]}  Nexd5 {[%clk 0:02:07]} 20. Nxd5 {[%clk 0:01:21]}  Nxd5 {[%clk 0:02:07]} 21. Red1 {[%clk 0:01:09]}  Ke7 {[%clk 0:02:02]} 22. Qd4 {[%clk 0:01:01]}  g5 {[%clk 0:01:46]} 23. f4 {[%clk 0:00:48]}  hxg3 {[%clk 0:01:44]} 24. hxg3 {[%clk 0:00:45]}  gxf4 {[%clk 0:01:39]} 25. Bxd5 {[%clk 0:00:45]}  fxg3 {[%clk 0:01:40]} 26. Qb4+ {[%clk 0:00:37]}  Kf6 {[%clk 0:01:36]} 27. Qd4+ {[%clk 0:00:17]}  Ke7 {[%clk 0:01:36]} 28. Qb4+ {[%clk 0:00:17]}  Rd6 {[%clk 0:00:56]} 29. Bg2 {[%clk 0:00:13]}  gxf2+ {[%clk 0:00:56]} 30. Kf1 {[%clk 0:00:14]}  Rd8 {[%clk 0:00:39]} 31. Rxd6 {[%clk 0:00:09]}  Qxd6 {[%clk 0:00:36]} 32. Qxd6+ {[%clk 0:00:09]}  Rxd6 {[%clk 0:00:37]} 33. Kxf2 {[%clk 0:00:09]}  Rd2+ {[%clk 0:00:37]} 34. Kg3 {[%clk 0:00:09]}  Kd6 {[%clk 0:00:35]} 35. Bf3 {[%clk 0:00:07]}  Rb2 {[%clk 0:00:32]} 36. Kf4 {[%clk 0:00:05]}  f5 {[%clk 0:00:31]} 37. Rd1+ {[%clk 0:00:04]}  Ke7 {[%clk 0:00:31]} 38. Re1 {[%clk 0:00:03]}  Kf6 {[%clk 0:00:31]} 39. Re2 {[%clk 0:00:03]}  Rb1 {[%clk 0:00:30]} 40. Kg3 {[%clk 0:00:03]}  e5 {[%clk 0:00:30]} 41. Bd5 {[%clk 0:00:03]}  e4 {[%clk 0:00:29]} 42. Kf4 {[%clk 0:00:02]}  Rf1+ {[%clk 0:00:28]} 43. Kg3 {[%clk 0:00:03]}  Ke5 {[%clk 0:00:28]} 44. Bc6 {[%clk 0:00:01]}  Rc1 {[%clk 0:00:28]} 45. Bb7 {[%clk 0:00:01]}  Rc7 {[%clk 0:00:28]} 46. Ba6 {[%clk 0:00:01]}  f4+ {[%clk 0:00:27]} 47. Kf2 {[%clk 0:00:01]}  Rg7 {[%clk 0:00:21]} 48. Bb7 {[%clk 0:00:01]}  e3+ {[%clk 0:00:21]} 49. Kf3 {[%clk 0:00:01]}  Rg3# {[%clk 0:00:21]} 0-1


[Site "https://www.chess.com"]

[Event "Titled Tuesday Blitz June 14 Late 2022"]
[White "Mikhailov, Viacheslav"]
[Black "Zhigalko, Sergei"]
[WhiteFideId "4187369"]
[BlackFideId "13502956"]
[WhiteElo "2381"]
[BlackElo "2662"]
[Result "1-0"]
[Round "11"]
[TimeControl "180+1"]
[Date "2022.06.14"]
[WhiteClock "0:00:24"]
[BlackClock "0:00:02"]

1. Nf3 {[%clk 0:02:46]}  d5 {[%clk 0:03:00]} 2. g3 {[%clk 0:02:46]}  c6 {[%clk 0:03:00]} 3. Bg2 {[%clk 0:02:46]}  Bg4 {[%clk 0:03:01]} 4. O-O {[%clk 0:02:47]}  Nd7 {[%clk 0:03:02]} 5. d4 {[%clk 0:02:47]}  e6 {[%clk 0:03:02]} 6. c4 {[%clk 0:02:46]}  Ngf6 {[%clk 0:03:02]} 7. Nc3 {[%clk 0:02:47]}  Be7 {[%clk 0:03:02]} 8. Qb3 {[%clk 0:02:45]}  Qb6 {[%clk 0:03:02]} 9. c5 {[%clk 0:02:46]}  Qa6 {[%clk 0:03:02]} 10. Re1 {[%clk 0:02:46]}  b6 {[%clk 0:03:02]} 11. cxb6 {[%clk 0:02:46]}  axb6 {[%clk 0:03:03]} 12. h3 {[%clk 0:02:45]}  Bh5 {[%clk 0:02:56]} 13. e4 {[%clk 0:02:38]}  O-O {[%clk 0:02:56]} 14. e5 {[%clk 0:02:36]}  Ne8 {[%clk 0:02:56]} 15. Be3 {[%clk 0:02:31]}  Nc7 {[%clk 0:02:53]} 16. Rec1 {[%clk 0:02:29]}  Rfc8 {[%clk 0:02:53]} 17. a4 {[%clk 0:02:18]}  c5 {[%clk 0:02:42]} 18. g4 {[%clk 0:02:01]}  Bg6 {[%clk 0:02:33]} 19. Bf1 {[%clk 0:01:48]}  c4 {[%clk 0:02:29]} 20. Qd1 {[%clk 0:01:48]}  Bb4 {[%clk 0:02:02]} 21. b3 {[%clk 0:01:42]}  Bxc3 {[%clk 0:01:57]} 22. Rxc3 {[%clk 0:01:43]}  b5 {[%clk 0:01:56]} 23. Rcc1 {[%clk 0:01:34]}  Qb6 {[%clk 0:01:37]} 24. axb5 {[%clk 0:01:33]}  Rxa1 {[%clk 0:01:36]} 25. Rxa1 {[%clk 0:01:33]}  c3 {[%clk 0:01:36]} 26. Nh4 {[%clk 0:01:16]}  Nxb5 {[%clk 0:00:54]} 27. Nxg6 {[%clk 0:01:15]}  hxg6 {[%clk 0:00:55]} 28. Qd3 {[%clk 0:01:16]}  Rb8 {[%clk 0:00:37]} 29. Ra4 {[%clk 0:01:03]}  Qc6 {[%clk 0:00:32]} 30. Rb4 {[%clk 0:00:56]}  Nc7 {[%clk 0:00:22]} 31. Rxb8+ {[%clk 0:00:51]}  Nxb8 {[%clk 0:00:23]} 32. b4 {[%clk 0:00:43]}  c2 {[%clk 0:00:06]} 33. b5 {[%clk 0:00:43]}  c1=Q {[%clk 0:00:05]} 34. bxc6 {[%clk 0:00:43]}  Qxc6 {[%clk 0:00:06]} 35. Qa3 {[%clk 0:00:41]}  Nd7 {[%clk 0:00:04]} 36. Qe7 {[%clk 0:00:40]}  Nf8 {[%clk 0:00:04]} 37. Bd2 {[%clk 0:00:36]}  Qd7 {[%clk 0:00:03]} 38. Qc5 {[%clk 0:00:36]}  Qd8 {[%clk 0:00:01]} 39. Ba5 {[%clk 0:00:35]}  Qg5 {[%clk 0:00:01]} 40. Bxc7 {[%clk 0:00:30]}  Qf4 {[%clk 0:00:02]} 41. Bd6 {[%clk 0:00:24]} 1-0


[Site "https://www.chess.com"]

[Event "Titled Tuesday Blitz June 14 Late 2022"]
[White "Oro, Luis"]
[Black "Omariev, Maksim"]
[WhiteFideId "104094"]
[BlackFideId "4193423"]
[WhiteElo "2367"]
[BlackElo "2459"]
[Result "0-1"]
[Round "11"]
[TimeControl "180+1"]
[Date "2022.06.15"]
[WhiteClock "0:00:03"]
[BlackClock "0:00:03"]

1. e4 {[%clk 0:03:00]}  c5 {[%clk 0:02:59]} 2. Nf3 {[%clk 0:03:00]}  d6 {[%clk 0:02:59]} 3. d4 {[%clk 0:03:00]}  cxd4 {[%clk 0:03:00]} 4. Nxd4 {[%clk 0:03:01]}  Nf6 {[%clk 0:03:00]} 5. Nc3 {[%clk 0:03:00]}  a6 {[%clk 0:03:00]} 6. f3 {[%clk 0:03:00]}  e6 {[%clk 0:02:59]} 7. Be3 {[%clk 0:03:00]}  Be7 {[%clk 0:02:53]} 8. Qd2 {[%clk 0:03:00]}  b5 {[%clk 0:02:44]} 9. O-O-O {[%clk 0:02:58]}  Bb7 {[%clk 0:02:43]} 10. g4 {[%clk 0:02:57]}  Nfd7 {[%clk 0:02:43]} 11. h4 {[%clk 0:02:54]}  Nb6 {[%clk 0:02:32]} 12. h5 {[%clk 0:02:53]}  h6 {[%clk 0:02:20]} 13. Nb3 {[%clk 0:02:34]}  Nc4 {[%clk 0:02:11]} 14. Bxc4 {[%clk 0:02:32]}  bxc4 {[%clk 0:02:12]} 15. Nd4 {[%clk 0:02:24]}  Nd7 {[%clk 0:02:11]} 16. Rhg1 {[%clk 0:02:17]}  Rb8 {[%clk 0:02:04]} 17. g5 {[%clk 0:01:57]}  hxg5 {[%clk 0:02:03]} 18. Bxg5 {[%clk 0:01:57]}  Nf6 {[%clk 0:01:39]} 19. h6 {[%clk 0:01:53]}  g6 {[%clk 0:01:31]} 20. Qe3 {[%clk 0:01:45]}  Ba8 {[%clk 0:01:19]} 21. e5 {[%clk 0:01:26]}  Nd5 {[%clk 0:01:08]} 22. Nxd5 {[%clk 0:01:21]}  Bxd5 {[%clk 0:00:34]} 23. Bxe7 {[%clk 0:01:12]}  Qxe7 {[%clk 0:00:34]} 24. exd6 {[%clk 0:01:11]}  Qxd6 {[%clk 0:00:35]} 25. Rh1 {[%clk 0:00:51]}  Qb4 {[%clk 0:00:31]} 26. Qc3 {[%clk 0:00:29]}  Qxc3 {[%clk 0:00:27]} 27. bxc3 {[%clk 0:00:29]}  Ke7 {[%clk 0:00:22]} 28. Rh3 {[%clk 0:00:23]}  Rh7 {[%clk 0:00:20]} 29. Rdh1 {[%clk 0:00:21]}  Rbh8 {[%clk 0:00:19]} 30. Ne2 {[%clk 0:00:21]}  g5 {[%clk 0:00:17]} 31. R1h2 {[%clk 0:00:14]}  f5 {[%clk 0:00:13]} 32. Kd2 {[%clk 0:00:13]}  Kf6 {[%clk 0:00:14]} 33. Ke3 {[%clk 0:00:13]}  Kg6 {[%clk 0:00:14]} 34. Rg3 {[%clk 0:00:10]}  Kf6 {[%clk 0:00:11]} 35. Rh5 {[%clk 0:00:09]}  f4+ {[%clk 0:00:10]} 36. Nxf4 {[%clk 0:00:09]}  gxf4+ {[%clk 0:00:11]} 37. Kxf4 {[%clk 0:00:09]}  Rxh6 {[%clk 0:00:10]} 38. Rhg5 {[%clk 0:00:07]}  Rh4+ {[%clk 0:00:10]} 39. Ke3 {[%clk 0:00:08]}  R8h6 {[%clk 0:00:08]} 40. Rg7 {[%clk 0:00:08]}  Rh3 {[%clk 0:00:07]} 41. Rxh3 {[%clk 0:00:05]}  Rxh3 {[%clk 0:00:08]} 42. Ra7 {[%clk 0:00:05]}  Rxf3+ {[%clk 0:00:08]} 43. Kd4 {[%clk 0:00:06]}  Rf2 {[%clk 0:00:08]} 44. Rxa6 {[%clk 0:00:05]}  Rd2+ {[%clk 0:00:07]} 45. Kc5 {[%clk 0:00:05]}  Rxc2 {[%clk 0:00:07]} 46. Kd4 {[%clk 0:00:05]}  Rd2+ {[%clk 0:00:05]} 47. Kc5 {[%clk 0:00:04]}  Kf5 {[%clk 0:00:03]} 48. a4 {[%clk 0:00:05]}  Ra2 {[%clk 0:00:02]} 49. a5 {[%clk 0:00:05]}  Ke4 {[%clk 0:00:03]} 50. Ra7 {[%clk 0:00:05]}  Kd3 {[%clk 0:00:03]} 51. a6 {[%clk 0:00:06]}  Kxc3 {[%clk 0:00:03]} 52. Kb6 {[%clk 0:00:04]}  Kb2 {[%clk 0:00:03]} 53. Rd7 {[%clk 0:00:03]}  c3 {[%clk 0:00:03]} 0-1


[Site "https://www.chess.com"]

[Event "Titled Tuesday Blitz June 14 Late 2022"]
[White "Rustemov, Alexander"]
[Black "Acosta, Pablo Ismael"]
[WhiteFideId "4119002"]
[BlackFideId "124311"]
[WhiteElo "2770"]
[BlackElo "2313"]
[Result "0-1"]
[Round "11"]
[TimeControl "180+1"]
[Date "2022.06.14"]
[WhiteClock "0:00:01"]
[BlackClock "0:00:05"]

1. d4 {[%clk 0:03:00]}  c5 {[%clk 0:02:58]} 2. d5 {[%clk 0:03:00]}  g6 {[%clk 0:02:58]} 3. c4 {[%clk 0:02:59]}  Bg7 {[%clk 0:02:59]} 4. e4 {[%clk 0:02:59]}  Nf6 {[%clk 0:02:59]} 5. Nc3 {[%clk 0:03:00]}  d6 {[%clk 0:02:59]} 6. Bd3 {[%clk 0:03:00]}  O-O {[%clk 0:03:00]} 7. h3 {[%clk 0:03:01]}  a6 {[%clk 0:02:59]} 8. a4 {[%clk 0:03:00]}  e6 {[%clk 0:02:59]} 9. Nf3 {[%clk 0:03:00]}  exd5 {[%clk 0:02:59]} 10. cxd5 {[%clk 0:03:01]}  c4 {[%clk 0:02:43]} 11. Bc2 {[%clk 0:02:56]}  Nbd7 {[%clk 0:02:40]} 12. O-O {[%clk 0:02:55]}  Rb8 {[%clk 0:02:31]} 13. a5 {[%clk 0:02:53]}  b5 {[%clk 0:02:29]} 14. axb6 {[%clk 0:02:50]}  Qxb6 {[%clk 0:02:29]} 15. Ra2 {[%clk 0:02:38]}  Re8 {[%clk 0:02:28]} 16. Be3 {[%clk 0:02:37]}  Qc7 {[%clk 0:02:27]} 17. Nd2 {[%clk 0:02:28]}  Ne5 {[%clk 0:01:52]} 18. Qe2 {[%clk 0:02:22]}  Nh5 {[%clk 0:01:38]} 19. g4 {[%clk 0:02:14]}  Nf6 {[%clk 0:01:36]} 20. f4 {[%clk 0:02:11]}  Nexg4 {[%clk 0:01:35]} 21. hxg4 {[%clk 0:02:10]}  Nxg4 {[%clk 0:01:35]} 22. Nf3 {[%clk 0:01:57]}  f5 {[%clk 0:01:12]} 23. Bd4 {[%clk 0:01:46]}  fxe4 {[%clk 0:01:04]} 24. Bxg7 {[%clk 0:01:40]}  Qxg7 {[%clk 0:00:57]} 25. Ng5 {[%clk 0:01:28]}  Bf5 {[%clk 0:00:45]} 26. Ne6 {[%clk 0:01:21]}  Rxe6 {[%clk 0:00:41]} 27. dxe6 {[%clk 0:01:20]}  d5 {[%clk 0:00:37]} 28. Rd1 {[%clk 0:01:05]}  d4 {[%clk 0:00:21]} 29. Qxc4 {[%clk 0:01:05]}  Ne3 {[%clk 0:00:12]} 30. Qxd4 {[%clk 0:00:59]}  Qxd4 {[%clk 0:00:12]} 31. Rxd4 {[%clk 0:00:58]}  Nxc2 {[%clk 0:00:13]} 32. Rd6 {[%clk 0:00:54]}  e3 {[%clk 0:00:12]} 33. e7 {[%clk 0:00:52]}  Re8 {[%clk 0:00:10]} 34. Rd8 {[%clk 0:00:41]}  Kf7 {[%clk 0:00:10]} 35. Rxe8 {[%clk 0:00:40]}  Kxe8 {[%clk 0:00:11]} 36. Rxa6 {[%clk 0:00:36]}  Kxe7 {[%clk 0:00:12]} 37. Ra7+ {[%clk 0:00:35]}  Kd6 {[%clk 0:00:12]} 38. Rxh7 {[%clk 0:00:35]}  Kc5 {[%clk 0:00:13]} 39. Kf1 {[%clk 0:00:33]}  Kb4 {[%clk 0:00:13]} 40. Ke2 {[%clk 0:00:32]}  Bg4+ {[%clk 0:00:12]} 41. Kd3 {[%clk 0:00:29]}  Bf5+ {[%clk 0:00:12]} 42. Ke2 {[%clk 0:00:29]}  Bg4+ {[%clk 0:00:13]} 43. Kf1 {[%clk 0:00:29]}  Kc4 {[%clk 0:00:11]} 44. Re7 {[%clk 0:00:23]}  Kd3 {[%clk 0:00:11]} 45. Kg2 {[%clk 0:00:22]}  Nd4 {[%clk 0:00:10]} 46. Nd5 {[%clk 0:00:12]}  Bf3+ {[%clk 0:00:09]} 47. Kg3 {[%clk 0:00:06]}  Bxd5 {[%clk 0:00:10]} 48. Rd7 {[%clk 0:00:07]}  Be6 {[%clk 0:00:09]} 49. Rd8 {[%clk 0:00:06]}  Bf5 {[%clk 0:00:10]} 50. b4 {[%clk 0:00:06]}  Kc4 {[%clk 0:00:09]} 51. b5 {[%clk 0:00:06]}  Be4 {[%clk 0:00:06]} 52. b6 {[%clk 0:00:04]}  Nc2 {[%clk 0:00:06]} 53. Rc8+ {[%clk 0:00:03]}  Kd3 {[%clk 0:00:06]} 54. Rd8+ {[%clk 0:00:03]}  Kc3 {[%clk 0:00:06]} 55. Re8 {[%clk 0:00:03]}  Kd3 {[%clk 0:00:04]} 56. Rxe4 {[%clk 0:00:03]}  Kxe4 {[%clk 0:00:05]} 57. b7 {[%clk 0:00:03]}  e2 {[%clk 0:00:05]} 58. b8=Q {[%clk 0:00:04]}  e1=Q+ {[%clk 0:00:06]} 59. Kg4 {[%clk 0:00:04]}  Qg1+ {[%clk 0:00:06]} 60. Kh4 {[%clk 0:00:04]}  Ne3 {[%clk 0:00:05]} 61. Qe5+ {[%clk 0:00:04]}  Kf3 {[%clk 0:00:05]} 62. Qe6 {[%clk 0:00:03]}  Nf5+ {[%clk 0:00:05]} 63. Kh3 {[%clk 0:00:01]}  Qg3# {[%clk 0:00:05]} 0-1


[Site "https://www.chess.com"]

[Event "Titled Tuesday Blitz June 14 Late 2022"]
[White "Sanal, Vahap"]
[Black "Ivanisevic, Ivan"]
[WhiteFideId "6300545"]
[BlackFideId "912417"]
[WhiteElo "2574"]
[BlackElo "2535"]
[Result "0-1"]
[Round "11"]
[TimeControl "180+1"]
[Date "2022.06.14"]
[WhiteClock "0:00:09"]
[BlackClock "0:00:04"]

1. Nf3 {[%clk 0:02:53]}  d5 {[%clk 0:02:58]} 2. b3 {[%clk 0:02:53]}  c5 {[%clk 0:02:57]} 3. Bb2 {[%clk 0:02:50]}  f6 {[%clk 0:02:57]} 4. e4 {[%clk 0:02:46]}  dxe4 {[%clk 0:02:54]} 5. Nh4 {[%clk 0:02:46]}  Nh6 {[%clk 0:02:54]} 6. Qh5+ {[%clk 0:02:42]}  g6 {[%clk 0:02:52]} 7. Nxg6 {[%clk 0:02:37]}  hxg6 {[%clk 0:02:49]} 8. Qxg6+ {[%clk 0:02:37]}  Kd7 {[%clk 0:02:39]} 9. Nc3 {[%clk 0:02:38]}  Nc6 {[%clk 0:02:38]} 10. O-O-O {[%clk 0:02:35]}  Kc7 {[%clk 0:02:35]} 11. Qxe4 {[%clk 0:02:25]}  Bf5 {[%clk 0:02:32]} 12. Qa4 {[%clk 0:02:21]}  e5 {[%clk 0:02:29]} 13. f4 {[%clk 0:02:12]}  a6 {[%clk 0:02:19]} 14. fxe5 {[%clk 0:02:11]}  fxe5 {[%clk 0:02:20]} 15. Qc4 {[%clk 0:01:40]}  b5 {[%clk 0:02:11]} 16. Qe2 {[%clk 0:01:40]}  Bxc2 {[%clk 0:01:41]} 17. Re1 {[%clk 0:01:34]}  Bh7 {[%clk 0:01:38]} 18. g4 {[%clk 0:01:33]}  Bd6 {[%clk 0:01:30]} 19. Bg2 {[%clk 0:01:33]}  Nd4 {[%clk 0:01:26]} 20. Qe3 {[%clk 0:01:29]}  Nxg4 {[%clk 0:01:19]} 21. Nd5+ {[%clk 0:01:29]}  Kb8 {[%clk 0:01:18]} 22. Qg3 {[%clk 0:01:28]}  Nf6 {[%clk 0:01:11]} 23. Qg7 {[%clk 0:01:16]}  Nxd5 {[%clk 0:01:04]} 24. Bxd5 {[%clk 0:01:17]}  Ra7 {[%clk 0:01:04]} 25. Qg2 {[%clk 0:01:10]}  Qf6 {[%clk 0:00:57]} 26. Rhg1 {[%clk 0:01:05]}  Bf5 {[%clk 0:00:39]} 27. Ref1 {[%clk 0:01:02]}  Rah7 {[%clk 0:00:38]} 28. Bc3 {[%clk 0:00:56]}  Rxh2 {[%clk 0:00:34]} 29. Qg8+ {[%clk 0:00:56]}  Rxg8 {[%clk 0:00:31]} 30. Rxg8+ {[%clk 0:00:57]}  Ka7 {[%clk 0:00:27]} 31. Ba5 {[%clk 0:00:57]}  Bf8 {[%clk 0:00:22]} 32. Kb2 {[%clk 0:00:43]}  c4 {[%clk 0:00:21]} 33. bxc4 {[%clk 0:00:31]}  bxc4 {[%clk 0:00:22]} 34. Rfg1 {[%clk 0:00:18]}  Rh7 {[%clk 0:00:15]} 35. Ka1 {[%clk 0:00:14]}  Nc2+ {[%clk 0:00:14]} 36. Kb2 {[%clk 0:00:14]}  Ba3+ {[%clk 0:00:13]} 37. Kc3 {[%clk 0:00:14]}  e4+ {[%clk 0:00:13]} 38. Kxc4 {[%clk 0:00:13]}  Qd4+ {[%clk 0:00:10]} 39. Kb3 {[%clk 0:00:14]}  Qb2+ {[%clk 0:00:08]} 40. Ka4 {[%clk 0:00:13]}  Rb7 {[%clk 0:00:04]} 41. R1g7 {[%clk 0:00:09]}  Qb5# {[%clk 0:00:04]} 0-1


[Site "https://www.chess.com"]